bitfinex-derivatives/quotes_ETHF0:USTF0_20210111
["timestamp","ask_amount","ask_price","bid_price","bid_amount"]
[1610404343316,4.00959,1051.5,1051.1,1.5076]
[1610404343515,5.90639,1051.5,1051.1,1.5076]
[1610404343716,4.00959,1051.5,1051.1,1.5076]
[1610404344419,3.64959,1051.5,1051.1,5.51719]
[1610404344818,5.54049,1051.5,1051.1,5.51719]
[1610404345020,3.64959,1051.5,1051.1,1.5076]
[1610404347521,3.64959,1051.5,1050.8,4.00959]
[1610404348221,0.4,1052.0,1050.8,4.00959]
[1610404348421,84.44279,1051.7,1050.7,2.4774]
[1610404348821,84.44279,1051.7,1049.8,76.3155]
[1610404349222,82.51339,1051.7,1049.8,76.3155]
[1610404350321,4.00959,1051.0,1050.1,4.00959]
[1610404352425,4.00959,1051.0,1050.4,4.00959]
[1610404352625,4.00959,1051.0,1050.4,5.75089]
[1610404354227,4.00959,1051.0,1050.4,1.7413]
[1610404356433,4.00959,1051.0,1050.7,4.00959]
[1610404356933,4.00959,1051.0,1050.7,6.27159]
[1610404357332,4.00959,1051.0,1050.7,2.262]
[1610404359737,6.3219,1051.9,1050.7,2.262]
[1610404360637,4.00959,1051.3,1051.0,4.00959]
[1610404361637,0.4,1052.0,1051.0,4.00959]
[1610404361838,0.4,1052.0,1051.0,6.38039]
[1610404362540,4.00959,1051.5,1051.3,4.00959]
[1610404363742,4.00959,1051.5,1051.0,2.3708]
[1610404364442,4.00959,1051.5,1051.4,4.00959]
[1610404364844,4.00959,1051.5,1051.4,2.4523]
[1610404366344,4.00959,1051.5,1051.0,2.3708]
[1610404366544,74.1049,1052.0,1051.0,2.3708]
[1610404367044,74.1049,1052.0,1051.0,2.3763]
[1610404367645,76.0238,1052.0,1051.0,2.3763]
[1610404368443,4.00959,1051.1,1051.0,2.3763]
[1610404372148,4.00959,1051.1,1050.7,2.262]
[1610404372547,4.00959,1050.8,1050.7,2.262]
[1610404372755,4.00959,1050.8,1050.4,1.7413]
[1610404372948,4.00959,1050.8,1050.1,4.00959]
[1610404374450,4.00959,1050.8,1050.7,4.00959]
[1610404374651,4.00959,1050.8,1049.8,56.3503]
[1610404376452,4.00959,1050.6,1050.1,4.00959]
[1610404377454,4.00959,1050.6,1050.1,5.93189]
[1610404377654,4.00959,1050.6,1050.1,4.00959]
[1610404380457,4.00959,1050.6,1050.3,4.00959]
[1610404380957,4.00959,1050.6,1050.3,6.13219]
[1610404381661,5.93919,1050.6,1050.3,6.13219]
[1610404382859,5.93919,1050.6,1050.3,2.1226]
[1610404383661,4.00959,1050.6,1050.3,2.1226]
[1610404385964,4.00959,1050.6,1050.2,4.00959]
[1610404388566,4.00959,1050.3,1050.2,3.60959]
[1610404392171,69.8988,1051.2,1050.2,3.60959]
[1610404392370,6.4632,1051.1,1050.2,3.60959]
[1610404392670,4.00959,1050.5,1050.2,3.60959]
[1610404394673,4.00959,1050.3,1050.2,3.60959]
[1610404403383,4.00959,1050.3,1049.9,0.3827]
[1610404404184,5.61259,1050.3,1049.9,0.3827]
[1610404404584,4.00959,1050.0,1049.9,0.3827]
[1610404405988,4.00959,1050.0,1049.1,71.1581]
[1610404406590,1.603,1050.3,1049.6,4.00959]
[1610404406890,1.603,1050.3,1049.1,71.1581]
[1610404408691,4.00959,1049.8,1049.6,4.00959]
[1610404409191,4.00959,1049.8,1049.1,71.1581]
[1610404410594,4.00959,1049.8,1049.6,4.00959]
[1610404412400,4.00959,1049.8,1049.1,73.6195]
[1610404412700,4.00959,1049.5,1049.4,4.00959]
[1610404415705,65.0029,1050.0,1049.4,4.00959]
[1610404416607,4.00959,1049.7,1049.4,4.00959]
[1610404427025,4.00959,1049.7,1049.1,2.4614]
[1610404427626,4.00959,1049.7,1048.7,79.3627]
[1610404428926,4.00959,1049.4,1049.3,4.00959]
[1610404429125,4.00959,1049.4,1048.7,79.3627]
[1610404430928,65.0029,1050.0,1049.2,4.00959]
[1610404433129,4.00959,1049.3,1049.2,4.00959]
[1610404435732,4.00959,1049.3,1048.6,2.3248]
[1610404437135,4.00959,1049.0,1048.8,4.00959]
[1610404438736,4.00959,1049.0,1048.6,2.3248]
[1610404438937,4.00959,1049.0,1048.1,59.7201]
[1610404439138,4.00959,1049.0,1048.5,4.00959]
[1610404439636,4.00959,1049.0,1048.5,6.49439]
[1610404440136,4.00959,1049.0,1048.5,2.4848]
[1610404441144,78.9632,1049.5,1048.7,4.00959]
[1610404443044,4.00959,1048.8,1048.7,4.00959]
[1610404447553,4.00959,1048.8,1048.5,2.4848]
[1610404447754,4.00959,1048.8,1047.8,73.0895]
[1610404449055,4.00959,1048.6,1048.3,4.00959]
[1610404451156,4.00959,1048.6,1048.5,4.00959]
[1610404451457,4.00959,1048.6,1048.5,6.43099]
[1610404453659,12.25869,1048.6,1048.5,6.43099]
[1610404456165,12.25869,1048.6,1048.5,2.4214]
[1610404456666,12.25869,1048.6,1047.8,73.0895]
[1610404457166,4.00959,1048.4,1048.2,4.00959]
[1610404466279,4.00959,1048.4,1047.4,62.9545]
[1610404466979,4.00959,1048.4,1047.2,1.9241]
[1610404467278,4.00959,1048.0,1047.2,1.9241]
[1610404467680,77.9833,1047.9,1046.8,73.4952]
[1610404467984,4.00959,1048.0,1046.8,1.8907]
[1610404468183,80.02,1047.8,1046.8,3.8276]
[1610404468581,4.00959,1048.0,1046.8,3.8276]
[1610404468783,78.2709,1047.0,1046.8,1.9369]
[1610404468981,1.9166,1047.9,1046.8,1.9369]
[1610404469182,4.00959,1046.9,1046.8,1.9369]
[1610404469382,4.00959,1046.9,1045.6,62.046]
[1610404469582,4.00959,1046.9,1044.9,1.9021]
[1610404469786,72.3898,1046.7,1045.1,77.5063]
[1610404470183,72.3898,1046.7,1045.1,79.4164]
[1610404470383,5.92239,1046.9,1045.1,1.9101]
[1610404470587,57.9425,1046.3,1045.1,1.9101]
[1610404470784,57.9425,1046.3,1045.1,4.0364]
[1610404471185,4.00959,1045.8,1045.5,4.00959]
[1610404471785,57.9425,1046.3,1045.5,4.00959]
[1610404472186,57.9425,1046.3,1045.5,6.36359]
[1610404472387,57.9425,1046.3,1045.5,9e-05]
[1610404472887,6.1169,1046.7,1045.5,9e-05]
[1610404473188,4.00959,1045.6,1045.5,9e-05]
[1610404475691,56.7696,1045.7,1045.5,9e-05]
[1610404476089,56.7696,1045.7,1045.5,1.90999]
[1610404476288,56.7696,1045.7,1045.5,9e-05]
[1610404477388,4.00959,1045.6,1045.1,2.1263]
[1610404477589,4.00959,1045.6,1044.9,4.00959]
[1610404480392,67.7029,1046.4,1044.9,4.00959]
[1610404480592,67.7029,1046.4,1044.9,6.35359]
[1610404481195,1.5555,1046.5,1044.9,2.344]
[1610404481494,1.5555,1046.5,1045.1,69.4712]
[1610404481693,1.7623,1046.8,1045.1,69.4712]
[1610404481894,86.4463,1047.2,1045.1,69.4712]
[1610404482095,80.2449,1047.2,1045.1,69.4712]
[1610404482394,74.1045,1047.2,1045.1,69.4712]
[1610404482595,74.1045,1047.2,1045.1,99.4712]
[1610404483298,78.11409,1047.2,1046.2,4.00959]
[1610404483495,4.00959,1047.2,1046.2,7.76829]
[1610404483996,4.00959,1047.2,1046.2,5.85449]
[1610404484897,4.00959,1047.2,1046.2,7.77659]
[1610404485098,75.7626,1047.6,1046.2,7.77659]
[1610404485298,4.00959,1047.4,1046.7,4.00959]
[1610404485499,4.00959,1047.4,1046.2,3.767]
[1610404486301,4.00959,1047.4,1046.5,62.4371]
[1610404486499,4.00959,1047.4,1046.5,64.2557]
[1610404486899,1.8658,1048.1,1046.5,64.2557]
[1610404487100,6.2777,1048.5,1046.5,64.2557]
[1610404487300,4.00959,1047.9,1047.5,4.00959]
[1610404487500,6.2777,1048.5,1047.5,4.00959]
[1610404487902,1.7909,1048.6,1047.5,6.42149]
[1610404488100,3.7239,1048.6,1047.5,6.42149]
[1610404488402,1.7909,1048.6,1047.5,6.42149]
[1610404488601,68.3126,1048.9,1047.5,6.42149]
[1610404488802,68.3126,1048.9,1047.5,15.15239]
[1610404489204,68.3126,1048.9,1048.1,4.00959]
[1610404489703,68.3126,1048.9,1048.1,5.89639]
[1610404490304,6.3806,1049.2,1048.1,1.8868]
[1610404490805,6.3806,1049.2,1048.1,3.767]
[1610404491205,6.092,1049.3,1048.1,3.767]
[1610404491407,4.00959,1048.4,1048.1,3.767]
[1610404492608,4.00959,1048.4,1048.1,1.8868]
[1610404493809,1.8902,1048.8,1048.1,1.8868]
[1610404494010,4.1416,1049.4,1048.1,1.8868]
[1610404494209,6.5064,1049.7,1048.1,1.8868]
[1610404494811,6.5064,1049.7,1048.0,4.00959]
[1610404495013,6.5064,1049.7,1048.0,5.91139]
[1610404495213,6.5064,1049.7,1048.0,14.35879]
[1610404495412,5.89729,1049.1,1048.4,4.00959]
[1610404496613,4.00959,1049.1,1048.4,4.00959]
[1610404497116,5.90869,1049.1,1048.4,4.00959]
[1610404497316,4.00959,1048.9,1048.4,4.00959]
[1610404497514,5.93839,1048.9,1048.4,4.00959]
[1610404497916,1.9288,1048.9,1048.4,4.00959]
[1610404498816,8.0921,1050.1,1048.4,4.00959]
[1610404499018,8.0921,1050.1,1048.4,16.67519]
[1610404499217,14.3108,1050.1,1048.4,16.67519]
[1610404499518,4.00959,1048.9,1048.7,4.00959]
[1610404499718,5.90789,1048.9,1048.7,4.00959]
[1610404499919,4.00959,1048.9,1048.7,4.00959]
[1610404500320,1.9297,1049.3,1048.7,4.00959]
[1610404500621,14.3108,1050.1,1048.7,7.58909]
[1610404501221,14.3108,1050.1,1048.7,5.70739]
[1610404501422,4.00959,1049.1,1048.7,1.6978]
[1610404505325,4.00959,1048.8,1048.7,1.6978]
[1610404505625,4.00959,1048.8,1048.4,2.0334]
[1610404506027,4.00959,1048.8,1048.3,4.00959]
[1610404507330,4.00959,1048.8,1048.7,4.00959]
[1610404507531,4.00959,1048.8,1048.6,2.383]
[1610404508631,4.00959,1048.8,1047.7,58.2921]
[1610404508931,4.00959,1048.8,1047.5,79.5851]
[1610404509130,4.00959,1048.8,1047.5,77.1732]
[1610404509331,4.00959,1048.6,1048.4,4.00959]
[1610404510532,1.8546,1049.2,1048.4,4.00959]
[1610404510732,1.8546,1049.2,1048.4,5.82369]
[1610404511332,4.00959,1048.8,1048.4,5.82369]
[1610404516138,15.03079,1048.8,1048.4,5.82369]
[1610404517339,4.00959,1048.5,1048.4,5.82369]
[1610404517540,4.00959,1048.5,1048.4,1.8141]
[1610404517739,4.00959,1048.5,1047.6,0.3827]
[1610404517740,65.47709,1048.5,1047.6,0.3827]
[1610404519339,4.00959,1048.2,1047.9,4.00959]
[1610404521842,57.8903,1048.9,1047.9,4.00959]
[1610404522042,57.8903,1048.9,1047.9,6.43839]
[1610404522343,1.8546,1049.2,1047.9,6.43839]
[1610404522643,6.4042,1049.4,1047.9,6.43839]
[1610404523543,6.4042,1049.4,1048.4,4.00959]
[1610404523944,6.4042,1049.4,1048.4,6.02929]
[1610404525545,4.00959,1048.8,1048.7,4.00959]
[1610404526245,4.00959,1048.8,1048.4,2.0197]
[1610404526646,6.4042,1049.4,1048.4,2.0197]
[1610404526847,55.0987,1049.6,1048.4,2.0197]
[1610404527247,6.3829,1049.5,1048.4,2.0197]
[1610404527447,4.00959,1048.8,1048.4,6.02929]
[1610404531556,4.00959,1048.6,1048.4,6.02929]
[1610404531850,68.8646,1048.9,1048.4,6.02929]
[1610404532649,68.8646,1048.9,1048.4,2.0197]
[1610404532850,68.8646,1048.9,1047.9,2.4288]
[1610404533051,68.8646,1048.9,1047.6,55.2741]
[1610404533652,4.00959,1048.7,1048.2,4.00959]
[1610404537558,68.8646,1048.9,1048.5,4.00959]
[1610404539459,4.00959,1048.6,1048.5,4.00959]
[1610404540160,4.00959,1048.6,1048.2,2.0047]
[1610404541460,4.00959,1048.3,1048.2,2.0047]
[1610404541964,4.00959,1048.3,1048.0,4.00959]
[1610404542761,4.00959,1048.3,1047.3,77.3732]
[1610404543464,4.00959,1048.0,1047.5,4.00959]
[1610404544063,69.659,1048.5,1047.5,4.00959]
[1610404544264,69.659,1048.5,1047.5,5.60719]
[1610404545468,4.00959,1048.3,1047.8,4.00959]
[1610404547372,69.659,1048.5,1047.8,4.00959]
[1610404547573,4.00959,1048.4,1048.0,4.00959]
[1610404551478,4.00959,1048.4,1048.2,4.00959]
[1610404565798,4.00959,1048.4,1047.8,1.8053]
[1610404566199,4.00959,1048.4,1047.5,60.8479]
[1610404567499,4.00959,1048.4,1047.9,4.00959]
[1610404567900,14.80779,1048.4,1047.9,4.00959]
[1610404568101,4.00959,1048.4,1047.9,4.00959]
[1610404568303,71.0799,1048.2,1047.5,1.5976]
[1610404568501,71.0799,1048.2,1047.1,75.2608]
[1610404568703,4.00959,1048.4,1046.4,30.0]
[1610404569001,62.56,1048.0,1046.4,30.0]
[1610404569701,66.56959,1048.0,1047.5,4.00959]
[1610404569902,4.00959,1048.0,1047.5,6.45869]
[1610404570101,70.2797,1047.7,1047.5,2.4491]
[1610404571504,74.28929,1047.7,1047.5,2.4491]
[1610404572504,4.00959,1047.7,1047.5,2.4491]
[1610404573507,62.763,1047.6,1047.5,2.4491]
[1610404574811,62.763,1047.6,1047.1,4.00959]
[1610404575711,4.00959,1047.3,1046.9,64.9104]
[1610404575911,4.00959,1047.3,1046.2,55.037]
[1610404575912,82.87839,1047.3,1046.2,55.037]
[1610404576511,82.87839,1047.3,1046.2,56.6853]
[1610404577614,82.87839,1047.3,1046.7,4.00959]
[1610404577813,82.87839,1047.3,1046.7,6.48289]
[1610404579214,82.87839,1047.3,1046.7,2.4733]
[1610404581417,4.00959,1047.3,1046.7,2.4733]
[1610404581618,67.1577,1046.9,1046.7,2.4733]
[1610404582516,67.1577,1046.9,1046.2,1.6483]
[1610404582719,67.1577,1046.9,1045.8,60.6313]
[1610404582917,4.00959,1047.1,1039.4,30.0]
[1610404583119,4.00959,1047.1,1044.6,2.2255]
[1610404583319,78.5888,1046.8,1044.7,64.8744]
[1610404583720,4.00959,1046.7,1046.4,4.00959]
[1610404584723,4.00959,1046.7,1044.7,64.8744]
[1610404585220,4.00959,1046.7,1044.7,65.2571]
[1610404585419,4.00959,1046.7,1044.7,0.3827]
[1610404585620,73.3649,1046.0,1045.7,4.00959]
[1610404585920,73.3649,1046.0,1044.7,0.3827]
[1610404587721,4.00959,1045.5,1044.9,4.00959]
[1610404587922,9.7194,1045.4,1044.9,4.00959]
[1610404588126,4.00959,1045.5,1044.9,4.00959]
[1610404588326,71.6595,1045.3,1044.9,5.88299]
[1610404589728,71.6595,1045.3,1045.2,4.00959]
[1610404590528,71.6595,1045.3,1045.2,6.28509]
[1610404591428,71.6595,1045.3,1045.2,2.2755]
[1610404592430,71.6595,1045.3,1044.9,5.88299]
[1610404593733,4.00959,1045.2,1044.9,5.88299]
[1610404595335,78.9863,1045.0,1044.9,5.88299]
[1610404597841,78.9863,1045.0,1044.7,0.3827]
[1610404599842,78.9863,1045.0,1044.8,4.00959]
[1610404600040,78.9863,1045.0,1044.7,0.3827]
[1610404601441,4.00959,1045.2,1044.7,0.3827]
[1610404601642,55.5479,1044.9,1044.7,0.3827]
[1610404601842,55.5479,1044.9,1044.8,4.00959]
[1610404603342,55.5479,1044.9,1044.7,0.3827]
[1610404605645,55.5479,1044.9,1044.6,2.2255]
[1610404605846,55.5479,1044.9,1044.7,4.00959]
[1610404606950,4.00959,1045.0,1044.7,4.00959]
[1610404607952,4.00959,1045.0,1044.9,4.00959]
[1610404609359,4.00959,1045.0,1044.5,1.9652]
[1610404609557,69.9277,1044.9,1044.5,1.9652]
[1610404609958,4.00959,1045.2,1044.6,4.00959]
[1610404610359,57.78999,1045.2,1044.6,4.00959]
[1610404611961,4.00959,1044.9,1044.6,4.00959]
[1610404612161,53.7804,1045.2,1044.6,4.00959]
[1610404615866,4.00959,1044.8,1044.6,4.00959]
[1610404616368,66.65459,1044.8,1044.6,4.00959]
[1610404617766,66.65459,1044.8,1044.2,2.1437]
[1610404617965,62.645,1044.8,1044.4,4.00959]
[1610404619869,4.00959,1044.5,1044.4,4.00959]
[1610404622769,3.70259,1044.5,1044.4,4.00959]
[1610404636192,81.16249,1044.5,1044.4,4.00959]
[1610404637794,81.16249,1044.5,1044.2,2.1437]
[1610404637994,4.00959,1044.3,1044.2,2.1437]
[1610404638194,11.1947,1044.2,1044.1,4.00959]
[1610404640401,11.1947,1044.2,1043.5,60.6932]
[1610404641101,4.00959,1044.3,1041.8,30.0]
[1610404641299,63.5118,1044.1,1042.0,68.5953]
[1610404642001,63.5118,1044.1,1043.8,4.00959]
[1610404642202,1.5591,1044.7,1043.8,4.00959]
[1610404642403,56.7186,1044.4,1043.8,5.79119]
[1610404643402,56.7186,1044.4,1043.8,1.7816]
[1610404644103,4.00959,1043.9,1043.8,1.7816]
[1610404646005,60.01259,1043.9,1043.8,1.7816]
[1610404647308,60.01259,1043.9,1043.6,4.00959]
[1610404648011,4.00959,1043.7,1043.6,4.00959]
[1610404652217,4.00959,1043.7,1043.0,60.542]
[1610404652418,4.00959,1043.7,1041.8,1.8014]
[1610404652619,81.82539,1043.7,1042.1,69.891]
[1610404652922,81.82539,1043.7,1042.1,72.364]
[1610404654023,81.82539,1043.7,1043.6,4.00959]
[1610404654223,81.82539,1043.7,1042.1,72.364]
[1610404654524,6.2228,1044.6,1042.1,2.473]
[1610404654924,6.2228,1044.6,1042.6,73.966]
[1610404655124,6.2228,1044.6,1042.6,76.4135]
[1610404655325,15.652,1044.6,1042.6,76.4135]
[1610404656129,4.00959,1044.0,1043.9,4.00959]
[1610404657028,4.00959,1044.0,1042.6,76.4135]
[1610404658331,15.652,1044.6,1043.4,4.00959]
[1610404658532,15.652,1044.6,1043.4,5.70249]
[1610404660132,15.652,1044.6,1043.9,4.00959]
[1610404660335,15.652,1044.6,1043.8,1.7948]
[1610404662134,4.00959,1043.9,1043.8,1.7948]
[1610404665435,4.00959,1043.9,1043.4,1.6929]
[1610404665734,4.00959,1043.9,1043.3,4.00959]
[1610404666237,4.00959,1043.9,1043.6,4.00959]
[1610404666440,4.00959,1043.9,1043.6,6.16999]
[1610404667437,15.652,1044.6,1043.6,6.16999]
[1610404668139,4.00959,1043.9,1043.6,6.16999]
[1610404669140,1.5591,1044.7,1043.6,6.16999]
[1610404669841,74.032,1045.1,1043.6,6.16999]
[1610404670242,4.00959,1044.2,1043.6,6.16999]
[1610404671943,2.1301,1044.8,1043.6,6.16999]
[1610404672144,4.00959,1044.4,1043.8,4.00959]
[1610404675148,68.026,1045.1,1043.8,4.00959]
[1610404676149,4.00959,1044.8,1044.2,4.00959]
[1610404676851,68.026,1045.1,1044.2,4.00959]
[1610404677257,68.026,1045.1,1044.2,5.60389]
[1610404677452,5.9592,1045.3,1044.2,5.60389]
[1610404678253,4.00959,1044.9,1044.4,4.00959]
[1610404678552,5.9592,1045.3,1044.4,4.00959]
[1610404679354,58.0656,1045.4,1044.4,4.00959]
[1610404680153,4.00959,1045.0,1044.6,4.00959]
[1610404680356,58.0656,1045.4,1044.6,4.00959]
[1610404681054,1.5323,1045.5,1044.6,4.00959]
[1610404681553,56.7914,1045.8,1044.6,4.00959]
[1610404682154,56.7914,1045.8,1044.4,66.6216]
[1610404682155,4.00959,1045.4,1044.8,4.00959]
[1610404682354,5.97239,1045.4,1044.4,32.82699]
[1610404682654,5.97239,1045.4,1042.9,30.0]
[1610404682855,70.314,1045.3,1043.5,53.7523]
[1610404683153,70.314,1045.3,1043.5,83.7523]
[1610404684156,4.00959,1045.0,1044.6,4.00959]
[1610404684455,8.4319,1046.1,1044.6,4.00959]
[1610404684658,63.6103,1045.9,1044.6,4.00959]
[1610404684956,63.6103,1045.9,1044.6,6.41309]
[1610404686259,4.00959,1045.1,1044.8,4.00959]
[1610404690564,63.6103,1045.9,1044.8,4.00959]
[1610404692164,4.00959,1045.4,1045.3,4.00959]
[1610404701081,79.8776,1045.9,1045.3,4.00959]
[1610404701384,6.1358,1046.9,1045.3,4.00959]
[1610404701588,70.6959,1046.1,1045.3,6.04169]
[1610404702485,70.6959,1046.1,1045.5,4.00959]
[1610404704391,70.6959,1046.1,1045.7,4.00959]
[1610404704592,70.6959,1046.1,1045.7,6.30469]
[1610404705493,4.00959,1046.2,1045.7,6.30469]
[1610404706394,4.00959,1046.2,1045.9,4.00959]
[1610404710003,55.1627,1046.8,1045.9,4.00959]
[1610404710404,4.00959,1046.4,1045.9,4.00959]
[1610404711604,55.1627,1046.8,1045.9,4.00959]
[1610404711805,6.5475,1047.4,1045.9,4.00959]
[1610404712505,4.00959,1046.5,1046.1,4.00959]
[1610404715208,67.5794,1047.6,1046.1,4.00959]
[1610404715509,67.5794,1047.6,1046.1,5.95339]
[1610404716613,4.00959,1046.7,1046.4,4.00959]
[1610404717411,67.5794,1047.6,1046.4,4.00959]
[1610404717613,6.4955,1047.7,1046.4,5.86419]
[1610404717812,6.4955,1047.7,1046.4,76.44589]
[1610404718516,4.00959,1047.1,1046.7,4.00959]
[1610404719715,6.4955,1047.7,1046.7,4.00959]
[1610404720015,6.4955,1047.7,1046.7,5.61899]
[1610404720218,6.4955,1047.7,1046.7,14.60159]
[1610404720519,6.4955,1047.7,1047.2,4.00959]
[1610404720917,6.4955,1047.7,1045.2,2.446]
[1610404721117,6.4955,1047.7,1046.3,58.6017]
[1610404721320,8.5625,1047.7,1046.3,58.6017]
[1610404722420,8.5625,1047.7,1047.0,4.00959]
[1610404724525,4.00959,1047.1,1047.0,4.00959]
[1610404728228,67.4788,1048.0,1047.0,4.00959]
[1610404728528,4.00959,1047.3,1047.0,60.85419]
[1610404728729,2.1146,1048.1,1047.0,60.85419]
[1610404728928,62.8687,1048.4,1047.0,60.85419]
[1610404730534,4.00959,1047.6,1047.3,4.00959]
[1610404730934,2.3404,1048.5,1047.3,4.00959]
[1610404731234,2.3404,1048.5,1047.4,61.8888]
[1610404732535,4.00959,1048.0,1047.5,4.00959]
[1610404734541,4.00959,1048.0,1047.7,13.54749]
[1610404734940,4.00959,1048.0,1047.7,15.24339]
[1610404736341,2.3404,1048.5,1047.7,15.24339]
[1610404736542,4.00959,1048.2,1047.9,4.00959]
[1610404737143,4.00959,1048.2,1047.9,64.90349]
[1610404737341,6.0598,1049.6,1047.9,4.00959]
[1610404737540,100.98784574,1050.1,1048.4,73.3784]
[1610404737541,6.3794,1049.8,1048.4,73.3784]
[1610404738141,173.44782548,1050.3,1048.4,73.3784]
[1610404738443,6.2934,1050.2,1048.4,73.3784]
[1610404738642,7.805,1050.2,1048.8,4.00959]
[1610404738842,7.805,1050.2,1049.1,60.7816]
[1610404739944,1.5116,1050.2,1049.1,60.7816]
[1610404740545,4.00959,1050.0,1049.3,4.00959]
[1610404740745,4.00959,1050.0,1049.5,9.9477]
[1610404741147,4.00959,1050.0,1049.5,11.7905]
[1610404741546,4.00959,1050.0,1049.5,1.8428]
[1610404741846,1.7267,1050.5,1049.5,1.8428]
[1610404742047,1.7267,1050.5,1049.7,54.2114]
[1610404742647,4.00959,1050.0,1049.7,54.2114]
[1610404744749,4.00959,1050.0,1049.8,4.00959]
[1610404745452,5.9759,1051.0,1049.8,5.80919]
[1610404745855,6.1815,1051.5,1049.8,5.80919]
[1610404746252,6.1815,1051.5,1050.1,61.5912]
[1610404746453,6.1815,1051.5,1050.1,63.546]
[1610404746654,4.00959,1050.5,1050.3,4.00959]
[1610404746856,1.8479,1051.3,1050.3,13.21129]
[1610404748559,4.00959,1050.8,1050.5,4.00959]
[1610404748958,4.00959,1050.8,1050.5,14.93869]
[1610404750462,1.5734,1051.6,1050.5,4.00959]
[1610404750662,4.00959,1051.1,1050.7,66.85279]
[1610404750861,1.5734,1051.6,1050.7,66.85279]
[1610404751462,5.9317,1052.5,1051.2,71.9361]
[1610404752562,4.00959,1052.1,1051.4,4.00959]
[1610404753062,4.00959,1052.1,1051.4,12.31629]
[1610404754562,4.00959,1052.1,1051.6,4.00959]
[1610404754962,4.00959,1052.1,1051.6,6.32409]
[1610404756063,61.2842,1053.2,1051.8,62.4803]
[1610404756565,4.00959,1052.6,1052.0,4.00959]
[1610404757266,1.562,1053.3,1052.2,69.9806]
[1610404757471,1.562,1053.3,1052.2,72.3218]
[1610404758670,4.00959,1052.9,1052.4,4.00959]
[1610404759673,4.00959,1052.9,1052.6,56.8804]
[1610404760779,4.00959,1052.9,1052.6,60.88999]
[1610404762477,6.3218,1053.6,1052.6,60.88999]
[1610404762677,4.00959,1053.2,1052.8,4.00959]
[1610404763177,6.3218,1053.6,1052.8,4.00959]
[1610404763377,2.2518,1053.8,1053.2,72.7311]
[1610404763984,6.4262,1054.5,1053.2,72.7311]
[1610404764581,4.00959,1053.4,1053.2,72.7311]
[1610404766585,4.00959,1053.4,1053.2,76.74069]
[1610404767484,1.5906,1054.0,1053.2,76.74069]
[1610404768587,4.00959,1053.7,1053.2,76.74069]
[1610404770792,4.00959,1053.7,1053.4,4.00959]
[1610404771293,6.4262,1054.5,1053.4,4.00959]
[1610404771493,6.4262,1054.5,1053.7,74.7469]
[1610404771695,6.4262,1054.5,1053.4,6.06459]
[1610404771894,6.4262,1054.5,1053.9,77.6181]
[1610404772695,4.00959,1054.4,1053.9,77.6181]
[1610404772897,1.9577,1054.5,1053.9,77.6181]
[1610404773096,1.9577,1054.5,1053.7,1.6548]
[1610404773298,1.9577,1054.5,1054.3,59.9224]
[1610404773997,6.4912,1055.2,1054.3,61.9505]
[1610404774799,10.50079,1055.2,1054.4,4.00959]
[1610404776700,10.50079,1055.2,1054.6,4.00959]
[1610404776899,10.50079,1055.2,1054.9,74.2424]
[1610404783406,10.50079,1055.2,1054.9,76.5571]
[1610404783906,4.00959,1055.2,1054.9,76.5571]
[1610404784807,4.00959,1055.2,1054.9,80.56669]
[1610404788613,6.1482,1056.2,1054.9,80.56669]
[1610404788812,6.1482,1056.2,1054.9,6.32429]
[1610404788813,4.00959,1055.5,1054.9,6.32429]
[1610404789015,4.00959,1055.5,1055.2,79.2587]
[1610404789313,4.00959,1055.5,1055.3,56.063]
[1610404791018,1.7089,1056.3,1055.3,56.063]
[1610404791217,1.7089,1056.3,1055.2,6.08449]
[1610404791419,1.7089,1056.3,1055.6,62.9046]
[1610404791617,1.7089,1056.3,1055.2,6.08449]
[1610404791817,1.7089,1056.3,1055.5,1.8505]
[1610404792017,2.4382,1056.6,1055.8,54.8426]
[1610404793016,4.00959,1056.3,1055.8,54.8426]
[1610404798820,4.00959,1056.0,1055.8,54.8426]
[1610404799820,5.9578,1056.9,1055.8,54.8426]
[1610404800120,5.9578,1056.9,1055.8,56.8723]
[1610404800822,4.00959,1056.2,1055.8,56.8723]
[1610404803329,5.9578,1056.9,1055.8,56.8723]
[1610404804635,1.7535,1057.1,1055.8,56.8723]
[1610404804832,4.00959,1056.1,1055.8,56.8723]
[1610404805731,4.00959,1056.1,1055.8,2.0297]
[1610404806031,4.00959,1056.1,1055.7,4.00959]
[1610404807438,4.00959,1056.1,1055.5,1.8505]
[1610404807733,13.51239,1056.1,1055.2,68.1242]
[1610404808049,4.00959,1056.1,1055.2,2.0749]
[1610404808450,4.00959,1056.1,1054.9,2.3147]
[1610404808639,74.4436,1056.0,1054.5,67.285]
[1610404808834,4.00959,1056.1,1049.8,6.3075]
[1610404809036,4.00959,1055.3,1054.9,4.00959]
[1610404809238,80.44999,1055.3,1054.2,54.3414]
[1610404809436,4.00959,1055.3,1049.9,30.0]
[1610404809634,72.34619,1055.3,1051.7,69.546]
[1610404809833,72.34619,1055.3,1051.7,75.3078]
[1610404810333,72.34619,1055.3,1051.8,6.0369]
[1610404810932,4.00959,1054.5,1054.1,4.00959]
[1610404811933,4.00959,1054.5,1053.5,72.8299]
[1610404812434,4.00959,1054.5,1051.8,6.0369]